bitfinex-derivatives/quotes_BTCF0:USTF0_20251206
["timestamp","ask_amount","ask_price","bid_price","bid_amount"]
[1765012300763,0.05681,89584.0,89583.0,0.01132829]
[1765012301259,0.05681,89584.0,89583.0,0.00016749]
[1765012301561,0.05681,89584.0,89583.0,0.00258751]
[1765012304056,0.05681,89584.0,89583.0,0.02958751]
[1765012304862,0.05681,89584.0,89583.0,0.00258751]
[1765012305456,0.05681,89584.0,89583.0,0.06920831]
[1765012305959,0.05681,89584.0,89583.0,0.03832829]
[1765012306169,0.05681,89584.0,89583.0,0.01132829]
[1765012306353,0.05681,89584.0,89583.0,0.06678829]
[1765012309260,0.05681,89584.0,89583.0,0.00016749]
[1765012309462,0.0111566,89617.0,89605.0,0.05546]
[1765012309661,0.05681,89602.0,89601.0,0.027]
[1765012309869,0.05771,89596.0,89595.0,0.0386493]
[1765012310463,0.05771,89596.0,89595.0,0.0111593]
[1765012310856,0.05771,89596.0,89595.0,0.0663193]
[1765012311762,0.05771,89596.0,89595.0,0.0111593]
[1765012312163,0.05771,89596.0,89595.0,0.0386493]
[1765012312360,0.05771,89596.0,89595.0,0.0111593]
[1765012313264,0.01673,89592.0,89587.0,0.0663202]
[1765012313461,0.05587,89584.0,89583.0,0.00016749]
[1765012313664,0.05587,89584.0,89583.0,0.00258751]
[1765012313860,0.05587,89584.0,89583.0,0.00016749]
[1765012314168,0.05587,89584.0,89583.0,0.00258751]
[1765012314565,0.05587,89584.0,89583.0,0.00358751]
[1765012314761,0.05587,89584.0,89544.0,0.04900352]
[1765012314762,0.05587,89566.0,89546.0,0.0298808]
[1765012314965,0.05587,89551.0,89550.0,0.0663249]
[1765012315270,0.05587,89551.0,89550.0,0.07773165]
[1765012315467,0.01673,89556.0,89544.0,0.0386556]
[1765012315468,0.05587,89545.0,89544.0,0.0386556]
[1765012315673,0.05587,89545.0,89544.0,0.0663256]
[1765012316468,0.05587,89545.0,89544.0,0.32773123]
[1765012317573,0.05587,89545.0,89544.0,0.07773123]
[1765012317774,0.05587,89545.0,89544.0,0.07973123]
[1765012317974,0.05587,89545.0,89544.0,0.08273123]
[1765012318460,0.05587,89545.0,89544.0,0.08573123]
[1765012318658,0.05587,89545.0,89544.0,0.08473123]
[1765012319875,0.05587,89545.0,89544.0,0.01840563]
[1765012320072,0.05587,89545.0,89544.0,0.006]
[1765012320376,0.05587,89545.0,89544.0,0.007]
[1765012320969,0.07355,89537.0,89536.0,0.00016749]
[1765012321180,0.07355,89537.0,89536.0,0.00258751]
[1765012321365,0.07355,89537.0,89536.0,0.00016749]
[1765012321566,0.07355,89537.0,89536.0,0.00258751]
[1765012321880,0.07355,89537.0,89536.0,0.00016749]
[1765012322566,0.37355,89537.0,89536.0,0.00016749]
[1765012324776,0.37355,89537.0,89536.0,0.00258751]
[1765012324976,0.37355,89537.0,89536.0,0.00016749]
[1765012325173,0.37355,89537.0,89536.0,0.00258751]
[1765012325976,0.37355,89537.0,89536.0,0.00016749]
[1765012326267,0.37355,89537.0,89536.0,0.00258751]
[1765012327467,0.07355,89537.0,89536.0,0.05981751]
[1765012330673,0.07355,89537.0,89536.0,0.00258751]
[1765012330874,0.07355,89537.0,89536.0,0.05981751]
[1765012331177,0.07355,89537.0,89536.0,0.06181751]
[1765012331579,0.07355,89537.0,89536.0,0.05981751]
[1765012333173,0.02792,89537.0,89536.0,0.41981751]
[1765012333374,0.05651,89537.0,89536.0,0.05981751]
[1765012334373,0.05651,89537.0,89536.0,0.06581751]
[1765012334874,0.05651,89537.0,89536.0,0.05981751]
[1765012335074,0.05651,89537.0,89536.0,0.06481751]
[1765012338176,0.07324,89550.0,89549.0,0.068395]
[1765012340780,0.07324,89550.0,89549.0,0.09822474]
[1765012341177,0.07324,89550.0,89549.0,0.068395]
[1765012341570,0.05651,89550.0,89549.0,0.068395]
[1765012342175,0.05651,89550.0,89549.0,0.12822028]
[1765012342372,0.05651,89550.0,89549.0,0.068395]
[1765012342977,0.07355,89550.0,89549.0,0.068395]
[1765012343583,0.07355,89550.0,89549.0,0.071395]
[1765012343978,0.05651,89550.0,89549.0,0.071395]
[1765012344880,0.01704,89565.0,89549.0,0.071395]
[1765012344881,0.02859,89565.0,89564.0,0.0683931]
[1765012345088,0.05651,89565.0,89564.0,0.0683931]
[1765012346590,0.05651,89565.0,89564.0,0.0713931]
[1765012346981,0.05651,89565.0,89564.0,0.0693931]
[1765012348288,0.05651,89565.0,89564.0,0.10930505]
[1765012349682,0.07355,89565.0,89564.0,0.10930505]
[1765012350290,0.07355,89565.0,89564.0,0.0693931]
[1765012353586,0.07355,89565.0,89564.0,0.09929971]
[1765012354387,0.07355,89565.0,89564.0,0.001]
[1765012354592,0.05768,89561.0,89556.0,0.0300741]
[1765012354894,0.05768,89557.0,89556.0,0.00016749]
[1765012355291,0.40768,89557.0,89556.0,0.00016749]
[1765012356595,0.38768,89557.0,89556.0,0.00258751]
[1765012356793,0.38868,89557.0,89556.0,0.00016749]
[1765012358894,0.38968,89557.0,89556.0,0.00016749]
[1765012361980,0.07482,89550.0,89549.0,0.02990661]
[1765012362191,0.0111665,89537.0,89536.0,0.03991195]
[1765012362498,0.05768,89534.0,89533.0,0.0111669]
[1765012362988,0.05768,89534.0,89533.0,0.0694369]
[1765012364395,0.05768,89534.0,89533.0,0.05827]
[1765012364595,0.05768,89534.0,89533.0,0.02867]
[1765012365297,0.05768,89534.0,89533.0,0.006]
[1765012365591,0.01704,89535.0,89528.0,0.0694376]
[1765012365592,0.05768,89529.0,89528.0,0.0694376]
[1765012365794,0.05768,89529.0,89528.0,0.05827]
[1765012366097,0.05768,89528.0,89527.0,0.04010714]
[1765012366493,0.05768,89528.0,89527.0,0.06970714]
[1765012368486,0.05768,89528.0,89527.0,0.07470714]
[1765012372301,0.02972,89534.0,89533.0,0.05675]
[1765012372502,0.05831749,89542.0,89541.0,0.05675]
[1765012372807,0.05831749,89542.0,89541.0,0.05917002]
[1765012374909,0.05931749,89542.0,89541.0,0.05917002]
[1765012377707,0.05831749,89542.0,89541.0,0.05917002]
[1765012377900,0.05931749,89542.0,89541.0,0.05917002]
[1765012378304,0.05831749,89542.0,89541.0,0.05917002]
[1765012378500,0.05831749,89542.0,89538.0,0.03991195]
[1765012378501,0.07531,89535.0,89532.0,0.03991195]
[1765012378705,0.05815,89532.0,89531.0,0.06894195]
[1765012378905,0.05815,89532.0,89531.0,0.09666195]
[1765012380013,0.05815,89532.0,89531.0,0.09766195]
[1765012380316,0.05815,89532.0,89531.0,0.05775]
[1765012380715,0.05815,89532.0,89531.0,0.05675]
[1765012380912,0.42815,89532.0,89527.0,0.07136936]
[1765012381107,0.05666,89528.0,89527.0,0.0298]
[1765012381312,0.05666,89528.0,89527.0,0.09845533]
[1765012382318,0.05666,89528.0,89527.0,0.06353]
[1765012383612,0.05666,89528.0,89527.0,0.10348028]
[1765012384204,0.05666,89528.0,89527.0,0.06353]
[1765012387225,0.02721,89528.0,89527.0,0.06353]
[1765012387924,0.05666,89528.0,89527.0,0.06353]
[1765012388421,0.05682749,89542.0,89541.0,0.05853]
[1765012389310,0.05682749,89542.0,89541.0,0.09849231]
[1765012390326,0.05682749,89542.0,89541.0,0.05853]
[1765012391039,0.05782749,89542.0,89541.0,0.05853]
[1765012391427,0.02837749,89542.0,89541.0,0.05853]
[1765012391639,0.00116749,89542.0,89541.0,0.05853]
[1765012392031,0.00016749,89542.0,89541.0,0.05853]
[1765012392342,0.00016749,89542.0,89541.0,0.43853]
[1765012392837,0.00016749,89542.0,89541.0,0.44153]
[1765012393435,0.0678236,89561.0,89560.0,0.05853]
[1765012393632,0.4978236,89561.0,89560.0,0.05853]
[1765012394840,0.4988236,89561.0,89560.0,0.05853]
[1765012395034,0.4988236,89561.0,89560.0,0.0298]
[1765012395338,0.05666,89554.0,89553.0,0.0696944]
[1765012399938,0.05666,89554.0,89553.0,0.10965889]
[1765012402339,0.05666,89554.0,89553.0,0.0696944]
[1765012402937,0.05666,89554.0,89553.0,0.10965889]
[1765012403542,0.05666,89554.0,89553.0,0.0696944]
[1765012405841,0.05866,89554.0,89553.0,0.0696944]
[1765012410949,0.0111616,89577.0,89573.0,0.05754]
[1765012411156,0.01104,89568.0,89566.0,0.0111628]
[1765012411451,0.05691,89567.0,89566.0,0.0111628]
[1765012411650,0.46691,89567.0,89566.0,0.0687028]
[1765012412853,0.05691,89567.0,89566.0,0.0687028]
[1765012413448,0.02887,89567.0,89566.0,0.0687028]
[1765012413640,0.0680714,89579.0,89578.0,0.05754]
[1765012413843,0.4280714,89579.0,89578.0,0.05754]
[1765012414048,0.4280714,89579.0,89578.0,0.06897216]
[1765012414457,0.41691,89579.0,89578.0,0.06897216]
[1765012415253,0.41691,89579.0,89578.0,0.01143216]
[1765012415453,0.41691,89579.0,89572.0,0.0111621]
[1765012415454,0.05691,89573.0,89572.0,0.0687021]
[1765012415654,0.27691,89573.0,89572.0,0.05754]
[1765012416356,0.05691,89569.0,89568.0,0.0687026]
[1765012416556,0.40691,89569.0,89568.0,0.0687026]
[1765012417040,0.09691,89569.0,89568.0,0.07975731]
[1765012417240,0.05691,89569.0,89568.0,0.07975731]
[1765012420046,0.48691,89569.0,89568.0,0.07975731]
[1765012420248,0.48691,89569.0,89568.0,0.05135731]
[1765012420456,0.05691,89564.0,89563.0,0.17578682]
[1765012420651,0.47691,89564.0,89563.0,0.0111632]
[1765012420843,0.05691,89563.0,89562.0,0.01134531]
[1765012421044,0.05691,89560.0,89559.0,0.0403037]
[1765012421456,0.48691,89560.0,89559.0,0.0687037]
[1765012421651,0.48691,89560.0,89559.0,0.07976088]
[1765012422051,0.48691,89560.0,89559.0,0.10969177]
[1765012423551,0.48791,89560.0,89559.0,0.10969177]
[1765012423759,0.48791,89560.0,89559.0,0.11069177]
[1765012424055,0.48791,89560.0,89559.0,0.14070762]
[1765012424459,0.48791,89560.0,89559.0,0.13970762]
[1765012424957,0.50569,89560.0,89559.0,0.13970762]
[1765012426352,0.50569,89560.0,89559.0,0.07976088]
[1765012430365,0.48791,89560.0,89559.0,0.07976088]
[1765012432668,0.18791,89560.0,89559.0,0.07976088]
[1765012433179,0.001,89560.0,89559.0,0.07976088]
[1765012433364,0.001,89560.0,89559.0,0.44976088]
[1765012435369,0.001,89560.0,89559.0,0.45076088]
[1765012435867,0.0689121,89573.0,89572.0,0.05741]
[1765012436055,0.4289121,89573.0,89572.0,0.05741]
[1765012436653,0.05775,89572.0,89571.0,0.03994802]
[1765012436852,0.0689123,89571.0,89569.0,0.03994802]
[1765012437058,0.07045,89570.0,89569.0,0.03994802]
[1765012437360,0.07045,89570.0,89565.0,0.08833203]
[1765012437361,0.05775,89566.0,89565.0,0.08833203]
[1765012437673,0.05775,89566.0,89559.0,0.02222088]
[1765012437674,0.05775,89563.0,89562.0,0.05992203]
[1765012437968,0.0689134,89562.0,89561.0,0.05992203]
[1765012438156,0.4589134,89562.0,89561.0,0.05992203]
[1765012438360,0.05775,89559.0,89558.0,0.01118891]
[1765012438554,0.05775,89554.0,89553.0,0.11934154]
[1765012438754,0.05775,89554.0,89553.0,0.14834154]
[1765012439263,0.05775,89554.0,89553.0,0.15970389]
[1765012440379,0.05775,89554.0,89553.0,0.07993685]
[1765012441369,0.0665734,89563.0,89562.0,0.05829]
[1765012441569,0.4865734,89563.0,89562.0,0.11825636]
[1765012442170,0.47541,89563.0,89562.0,0.11825636]
[1765012442360,0.47541,89563.0,89562.0,0.11825306]
[1765012442868,0.47641,89563.0,89562.0,0.11825306]
[1765012443571,0.47641,89563.0,89562.0,0.02841]
[1765012444361,0.30641,89563.0,89562.0,0.0694534]
[1765012445162,0.30541,89563.0,89562.0,0.0694534]
[1765012445362,0.30641,89563.0,89562.0,0.0694534]
[1765012446258,0.30641,89563.0,89562.0,0.05829]
[1765012446462,0.30641,89563.0,89562.0,0.02841]
[1765012446972,0.30641,89563.0,89562.0,0.05829]
[1765012447674,0.05479,89561.0,89560.0,0.0894529]
[1765012447860,0.47479,89561.0,89560.0,0.0894529]
[1765012448964,0.47579,89561.0,89560.0,0.0894529]
[1765012449873,0.05479,89559.0,89558.0,0.0299829]
[1765012450068,0.05479,89559.0,89553.0,0.05102174]
[1765012450069,0.0111639,89558.0,89553.0,0.04102744]
[1765012450273,0.0111645,89553.0,89552.0,0.03015039]
[1765012450468,0.4259545,89553.0,89552.0,0.00016749]
[1765012450870,0.0762556,89544.0,89543.0,0.0299829]
[1765012451068,0.0762556,89544.0,89539.0,0.0299829]
[1765012451069,0.0659561,89540.0,89539.0,0.0299829]
[1765012451271,0.05479,89537.0,89536.0,0.0299829]
[1765012451475,0.43479,89537.0,89536.0,0.0299829]
[1765012451770,0.43479,89537.0,89536.0,0.0595729]
[1765012452067,0.43479,89537.0,89536.0,0.05947]
[1765012452273,0.43479,89537.0,89536.0,0.02959]
[1765012452773,0.43579,89537.0,89536.0,0.02959]
[1765012453273,0.05479,89535.0,89534.0,0.05947]
[1765012453469,0.05479,89533.0,89532.0,0.011167]
[1765012453667,0.46479,89533.0,89532.0,0.040757]
[1765012453868,0.46479,89533.0,89532.0,0.05171469]
[1765012454062,0.46479,89533.0,89532.0,0.08159469]
[1765012455364,0.05479,89544.0,89543.0,0.05947]
[1765012455565,0.30479,89544.0,89543.0,0.05947]
[1765012457476,0.30579,89544.0,89543.0,0.05947]
[1765012458070,0.30479,89544.0,89543.0,0.05947]
[1765012458271,0.32101,89544.0,89543.0,0.05947]
[1765012459274,0.32101,89544.0,89543.0,0.02959]
[1765012460872,0.05479,89541.0,89540.0,0.02992409]
[1765012461073,0.45479,89541.0,89540.0,0.02992409]
[1765012461276,0.45479,89541.0,89540.0,0.08939409]
[1765012462878,0.001,89544.0,89543.0,0.05947]
[1765012463074,0.001,89544.0,89543.0,0.06189002]
[1765012463480,0.00016749,89545.0,89544.0,0.0869356]
[1765012463674,0.02756749,89545.0,89544.0,0.12921357]
[1765012463984,0.05495749,89545.0,89544.0,0.12921357]
[1765012464881,0.05495749,89545.0,89544.0,0.13421357]
[1765012465080,0.05495749,89545.0,89544.0,0.13521357]
[1765012465377,0.05495749,89545.0,89544.0,0.10774797]
[1765012465590,0.41495749,89545.0,89544.0,0.00842002]
[1765012466079,0.41495749,89545.0,89544.0,0.006]
[1765012466585,0.41495749,89545.0,89544.0,0.005]
[1765012466775,0.05479,89542.0,89541.0,0.03985795]
[1765012467075,0.43479,89542.0,89541.0,0.03985795]
[1765012468283,0.43579,89542.0,89541.0,0.03985795]
[1765012468787,0.43579,89542.0,89541.0,0.02991827]
[1765012469081,0.05479,89540.0,89539.0,0.02991827]
[1765012469386,0.0659562,89539.0,89538.0,0.02991827]
[1765012469578,0.4259562,89539.0,89538.0,0.02991827]
[1765012469984,0.07464,89538.0,89537.0,0.02991827]
[1765012470185,0.0689365,89537.0,89536.0,0.02991827]
[1765012470388,0.4789365,89537.0,89536.0,0.02991827]
[1765012471379,0.4799365,89537.0,89536.0,0.02991827]
[1765012472389,0.05777,89533.0,89532.0,0.09679795]
[1765012472588,0.48777,89533.0,89532.0,0.09679795]
[1765012474382,0.48777,89533.0,89532.0,0.05694]
[1765012479393,0.48777,89533.0,89532.0,0.11678819]
[1765012480393,0.48777,89533.0,89532.0,0.05694]
[1765012481288,0.05777,89529.0,89528.0,0.00016749]
[1765012481487,0.40777,89529.0,89528.0,0.00258751]
[1765012481687,0.40777,89529.0,89528.0,0.05952751]
[1765012481990,0.05777,89529.0,89528.0,0.07052215]
[1765012482881,0.05777,89529.0,89528.0,0.07352215]
[1765012494404,0.068596,89542.0,89541.0,0.05583]
[1765012494595,0.198596,89542.0,89541.0,0.05583]
[1765012495607,0.05743,89542.0,89541.0,0.05583]
[1765012496493,0.05843,89542.0,89541.0,0.05583]
[1765012496889,0.001,89542.0,89541.0,0.09582213]
[1765012497090,0.02969,89542.0,89541.0,0.05583]
[1765012497496,0.05843,89542.0,89541.0,0.05583]
[1765012498300,0.05743,89542.0,89541.0,0.05583]
[1765012499100,0.05743,89542.0,89541.0,0.05883]
[1765012499699,0.05743,89564.0,89555.0,0.0166]
[1765012500004,0.05743,89564.0,89563.0,0.05972002]
[1765012500596,0.05743,89564.0,89563.0,0.08968886]
[1765012501203,0.05743,89564.0,89563.0,0.05972002]
[1765012501897,0.05943,89564.0,89563.0,0.05972002]
[1765012502907,0.05843,89564.0,89563.0,0.05972002]
[1765012503702,0.47843,89564.0,89563.0,0.03213002]
[1765012503910,0.47843,89564.0,89563.0,0.00242002]
[1765012504407,0.47743,89564.0,89563.0,0.05972002]
[1765012505807,0.47843,89564.0,89563.0,0.05972002]
[1765012507304,0.19843,89564.0,89563.0,0.05972002]
[1765012507606,0.01718,89585.0,89584.0,0.0573]
[1765012507907,0.05449,89577.0,89576.0,0.05746749]
[1765012508219,0.42449,89577.0,89576.0,0.00016749]
[1765012509204,0.42549,89577.0,89576.0,0.00016749]
[1765012510202,0.42549,89577.0,89576.0,0.00258751]
[1765012510801,0.42549,89577.0,89576.0,0.00016749]
[1765012511112,0.42449,89577.0,89576.0,0.00016749]
[1765012511409,0.42449,89577.0,89576.0,0.00258751]
[1765012512903,0.14449,89577.0,89576.0,0.05988751]
[1765012513305,0.47449,89577.0,89576.0,0.00016749]
[1765012513507,0.47449,89577.0,89576.0,0.00258751]
[1765012514403,0.47449,89577.0,89576.0,0.00016749]
[1765012515212,0.47449,89577.0,89576.0,0.00258751]
[1765012515411,0.47449,89577.0,89576.0,0.00016749]
[1765012515708,0.47449,89577.0,89576.0,0.00258751]
[1765012516811,0.47449,89577.0,89576.0,0.03229751]
[1765012517009,0.47449,89577.0,89576.0,0.00258751]
[1765012517515,0.47449,89577.0,89576.0,0.00016749]
[1765012517714,0.47449,89577.0,89576.0,0.00258751]
[1765012517913,0.47449,89577.0,89576.0,0.00016749]
[1765012518212,0.47449,89577.0,89576.0,0.00258751]
[1765012518409,0.47449,89577.0,89576.0,0.00016749]
[1765012521107,0.47449,89577.0,89576.0,0.00258751]
[1765012521308,0.47449,89577.0,89576.0,0.00016749]
[1765012522018,0.47449,89577.0,89576.0,0.00258751]
[1765012522216,0.47449,89577.0,89576.0,0.00016749]
[1765012523613,0.47449,89577.0,89576.0,0.00258751]
[1765012523820,0.47449,89577.0,89576.0,0.00016749]
[1765012525623,0.05449,89567.0,89566.0,0.02813007]
[1765012525924,0.05449,89561.0,89560.0,0.204662]
[1765012526223,0.47449,89561.0,89560.0,0.0111636]
[1765012526421,0.47449,89561.0,89560.0,0.05112206]
[1765012526622,0.47449,89561.0,89551.0,0.16470354]
[1765012526623,0.05449,89559.0,89558.0,0.03995846]
[1765012526924,0.05449,89554.0,89552.0,0.04012595]
[1765012527124,0.05449,89554.0,89553.0,0.00242002]
[1765012528513,0.0656545,89553.0,89552.0,0.04712595]
[1765012528714,0.4456545,89553.0,89552.0,0.00716749]
[1765012529519,0.4456545,89553.0,89552.0,0.00016749]
[1765012531623,0.4456545,89553.0,89540.0,0.16467549]
[1765012531624,0.05627,89541.0,89540.0,0.16467549]
[1765012531818,0.05627,89541.0,89539.0,0.03995846]
[1765012531819,0.0727,89540.0,89539.0,0.06803846]
[1765012532021,0.4427,89540.0,89539.0,0.03995846]
[1765012532323,0.05627,89538.0,89537.0,0.05112486]
[1765012532523,0.05627,89538.0,89537.0,0.07920486]
[1765012532828,0.05627,89538.0,89537.0,0.0662464]
[1765012534224,0.05627,89538.0,89537.0,0.0392464]
[1765012534422,0.05627,89538.0,89537.0,0.0662464]
[1765012534824,0.05627,89538.0,89537.0,0.05508]
[1765012543440,0.0674356,89545.0,89544.0,0.05508]
[1765012543640,0.4474356,89545.0,89544.0,0.05508]
[1765012545634,0.4474356,89545.0,89537.0,0.0662464]
[1765012545635,0.05627,89538.0,89537.0,0.0662464]
[1765012553463,0.05627,89538.0,89537.0,0.10620486]
[1765012554360,0.05627,89538.0,89537.0,0.0662464]
[1765012555167,0.05627,89538.0,89537.0,0.0692464]
[1765012555559,0.05627,89538.0,89537.0,0.0662464]
[1765012555766,0.05627,89538.0,89537.0,0.0672464]
[1765012556263,0.05627,89538.0,89537.0,0.12618409]
[1765012556565,0.05627,89538.0,89537.0,0.12718409]
[1765012557267,0.05627,89538.0,89537.0,0.0672464]
[1765012557960,0.05627,89538.0,89537.0,0.0662464]
[1765012558164,0.05627,89538.0,89537.0,0.0672464]
[1765012558565,0.05627,89538.0,89537.0,0.0662464]
[1765012561764,0.05641749,89546.0,89545.0,0.0699755]
[1765012561968,0.43641749,89546.0,89545.0,0.05881]
[1765012562870,0.43641749,89546.0,89545.0,0.02955]
[1765012564767,0.43641749,89546.0,89545.0,0.05881]
[1765012568764,0.21641749,89546.0,89545.0,0.05881]
[1765012568959,0.41016749,89546.0,89544.0,0.0111656]
[1765012569173,0.05625,89543.0,89542.0,0.08962278]
[1765012569468,0.44625,89543.0,89542.0,0.11888278]
[1765012572670,0.10625,89543.0,89542.0,0.11888278]
[1765012572865,0.45625,89543.0,89542.0,0.11888278]
[1765012576573,0.05625,89543.0,89542.0,0.11888278]
[1765012576876,0.05625,89543.0,89542.0,0.05881]
[1765012577778,0.05625,89543.0,89542.0,0.06181]
[1765012578377,0.05625,89543.0,89542.0,0.05981]
[1765012587881,0.00016749,89546.0,89545.0,0.05881]
[1765012588084,0.0674137,89560.0,89559.0,0.05881]
[1765012588277,0.4974137,89560.0,89559.0,0.05881]
[1765012593879,0.48625,89560.0,89559.0,0.05881]
[1765012597998,0.48625,89560.0,89559.0,0.08884392]
[1765012598389,0.27625,89560.0,89559.0,0.08884392]
[1765012604893,0.27625,89560.0,89559.0,0.10421392]
[1765012605301,0.27625,89560.0,89559.0,0.08884392]
[1765012607104,0.27625,89560.0,89559.0,0.05881]
[1765012609396,0.27625,89560.0,89559.0,0.07615]
[1765012610004,0.27625,89560.0,89559.0,0.05881]
[1765012611703,0.27625,89560.0,89559.0,0.07537]
[1765012611902,0.22,89560.0,89559.0,0.07537]
[1765012612407,0.24965,89560.0,89559.0,0.11541523]
[1765012612602,0.22,89560.0,89559.0,0.07537]
[1765012612805,0.05717749,89568.0,89567.0,0.0699728]
[1765012613002,0.05717749,89568.0,89567.0,0.07239282]
[1765012614308,0.05717749,89568.0,89567.0,0.11234861]
[1765012619311,0.05717749,89568.0,89567.0,0.07239282]
[1765012621306,0.02981749,89568.0,89567.0,0.07239282]
[1765012621508,0.00016749,89568.0,89567.0,0.07239282]
[1765012621805,0.02897749,89568.0,89567.0,0.07339282]
[1765012622017,0.05610749,89568.0,89567.0,0.07339282]
[1765012623505,0.05610749,89568.0,89567.0,0.07539282]
[1765012626612,0.05610749,89568.0,89567.0,0.07239282]
[1765012634419,0.05610749,89568.0,89567.0,0.11234861]
[1765012636312,0.05610749,89568.0,89567.0,0.07239282]
[1765012639413,0.00016749,89568.0,89567.0,0.49239282]
[1765012641917,0.02897749,89568.0,89567.0,0.49539282]
[1765012642319,0.00016749,89568.0,89567.0,0.49539282]
[1765012643224,0.05594,89582.0,89581.0,0.05624]
[1765012643428,0.15594,89582.0,89581.0,0.08622359]
[1765012643619,0.15594,89582.0,89581.0,0.05624]
[1765012643926,0.42594,89582.0,89581.0,0.06715326]
[1765012644125,0.42594,89582.0,89581.0,0.09713423]
[1765012644327,0.42594,89582.0,89581.0,0.06715326]
[1765012645025,0.42594,89582.0,89581.0,0.09713423]
[1765012645524,0.14594,89582.0,89581.0,0.09713423]
[1765012645729,0.14594,89582.0,89581.0,0.06715326]
[1765012649822,0.05594,89582.0,89581.0,0.06715326]
[1765012651131,0.05698,89590.0,89589.0,0.05876]
[1765012651434,0.46698,89590.0,89589.0,0.06118002]
[1765012651939,0.46698,89590.0,89589.0,0.00242002]
[1765012652233,0.05698,89584.0,89583.0,0.0699207]
[1765012652535,0.40698,89584.0,89583.0,0.0699207]
[1765012653537,0.027,89584.0,89583.0,0.0852207]
[1765012653737,0.05698,89584.0,89583.0,0.0852207]
[1765012654233,0.05698,89584.0,89583.0,0.11516175]
[1765012658425,0.32698,89584.0,89583.0,0.09986175]
[1765012659039,0.32698,89584.0,89583.0,0.0699207]
[1765012662438,0.0111595,89594.0,89593.0,0.05876]
[1765012662639,0.0681395,89594.0,89593.0,0.05876]
[1765012663446,0.05698,89593.0,89592.0,0.0111596]
[1765012663647,0.45698,89593.0,89592.0,0.0401296]
[1765012664149,0.45698,89593.0,89572.0,0.01686]
[1765012664150,0.05698,89589.0,89588.0,0.06992]
[1765012667052,0.05698,89587.0,89586.0,0.05888764]
[1765012667247,0.05698,89587.0,89586.0,0.02991764]
[1765012667248,0.46698,89587.0,89586.0,0.02991764]
[1765012668148,0.46698,89587.0,89586.0,0.05888764]
[1765012668734,0.46698,89587.0,89586.0,0.02897]
[1765012669139,0.46698,89587.0,89586.0,0.05876]
[1765012669339,0.46698,89587.0,89586.0,0.08867764]
[1765012669640,0.0665604,89586.0,89585.0,0.02991764]
[1765012669844,0.05808,89585.0,89584.0,0.02991764]
[1765012670042,0.43808,89585.0,89584.0,0.02991764]
[1765012670447,0.05808,89582.0,89581.0,0.06630326]
[1765012671341,0.05808,89582.0,89581.0,0.10628138]
[1765012673250,0.05808,89582.0,89581.0,0.06630326]
[1765012681951,0.32808,89582.0,89581.0,0.06630326]
[1765012682845,0.32808,89582.0,89581.0,0.02767]
[1765012683051,0.05751,89579.0,89578.0,0.09778704]
[1765012683248,0.05751,89579.0,89578.0,0.07910616]
[1765012683449,0.07517,89577.0,89576.0,0.06800704]
[1765012683650,0.47517,89577.0,89576.0,0.02809]
[1765012683850,0.47517,89577.0,89576.0,0.03911639]
[1765012685759,0.47517,89577.0,89576.0,0.06889639]
[1765012686152,0.47517,89577.0,89576.0,0.12881323]
[1765012687363,0.47517,89577.0,89576.0,0.06889639]
[1765012687862,0.47517,89577.0,89576.0,0.12880375]
[1765012688962,0.47517,89577.0,89576.0,0.06889639]
[1765012689163,0.47517,89577.0,89576.0,0.12879151]
[1765012690957,0.05751,89575.0,89574.0,0.05989512]
[1765012691153,0.0799319,89574.0,89573.0,0.00016749]
[1765012691357,0.4499319,89574.0,89573.0,0.03993689]
[1765012691557,0.0686721,89572.0,89571.0,0.03993689]
[1765012691754,0.4286721,89572.0,89571.0,0.01458225]
[1765012691952,0.0111623,89571.0,89568.0,0.02996064]
[1765012692159,0.0686733,89563.0,89562.0,0.02996064]
[1765012692356,0.4686733,89563.0,89562.0,0.02996064]
[1765012693257,0.05751,89562.0,89561.0,0.01125406]
[1765012693565,0.0686735,89561.0,89560.0,0.02996064]
[1765012693868,0.4586735,89561.0,89560.0,0.08783064]
[1765012694267,0.4586735,89561.0,89560.0,0.06909696]
[1765012695867,0.4586735,89561.0,89560.0,0.09899155]
[1765012697273,0.4586735,89561.0,89560.0,0.06909696]
[1765012697871,0.4586735,89561.0,89560.0,0.01122696]
[1765012698172,0.05751,89559.0,89558.0,0.05798459]
[1765012698370,0.44751,89559.0,89558.0,0.08776459]
[1765012698560,0.44751,89559.0,89558.0,0.09894902]
[1765012699166,0.44751,89559.0,89558.0,0.06905443]
[1765012700866,0.44751,89559.0,89558.0,0.01118443]
[1765012701068,0.0686739,89558.0,89557.0,0.02989459]
[1765012701373,0.4186739,89558.0,89557.0,0.02989459]
[1765012701572,0.4186739,89558.0,89557.0,0.01141609]
[1765012701775,0.05751,89557.0,89556.0,0.05798459]
[1765012701976,0.41751,89557.0,89556.0,0.08776459]
[1765012703066,0.20751,89557.0,89556.0,0.08776459]
[1765012703266,0.05751,89557.0,89556.0,0.07447]
[1765012703472,0.02799,89557.0,89556.0,0.08560519]
[1765012703674,0.0686729,89566.0,89565.0,0.05787]
[1765012703871,0.4586729,89566.0,89565.0,0.05787]
[1765012706278,0.05751,89566.0,89565.0,0.05787]
[1765012708978,0.05751,89566.0,89565.0,0.08773067]
[1765012709273,0.00016749,89571.0,89566.0,0.0111629]
[1765012709480,0.11767749,89571.0,89570.0,0.06029002]
[1765012709783,0.05767749,89571.0,89570.0,0.09015684]
[1765012709973,0.05767749,89571.0,89570.0,0.06029002]
[1765012716277,0.02815749,89571.0,89570.0,0.09017438]
[1765012716481,0.00016749,89571.0,89570.0,0.09017438]
[1765012716687,0.02802749,89571.0,89570.0,0.09017438]
[1765012716980,0.02802749,89571.0,89570.0,0.06029002]
[1765012717574,0.05547749,89571.0,89570.0,0.06029002]
[1765012724588,0.43547749,89571.0,89570.0,0.06029002]
[1765012725381,0.43547749,89571.0,89570.0,0.05787]
[1765012725576,0.43547749,89571.0,89570.0,0.02809]
[1765012726693,0.05531,89569.0,89568.0,0.0666325]
[1765012726894,0.46531,89569.0,89568.0,0.0666325]
[1765012727994,0.46531,89569.0,89568.0,0.0676325]
[1765012728594,0.46531,89569.0,89568.0,0.0666325]
[1765012738996,0.05531,89569.0,89568.0,0.0666325]
[1765012741401,0.05531,89569.0,89568.0,0.0824825]